fUSD/lending_fUSD_20260524
["ID","MTS","AMOUNT","RATE_DAILY","PERIOD"]
[422893905,1779586240000,-256.59241585,0.00021913,2]
[422893908,1779586240000,-151.0,0.00021913,2]
[422893910,1779586240000,-266.08633524,0.00021913,2]
[422893914,1779586240000,-500.0,0.00021913,2]
[422893912,1779586240000,-151.0,0.00021913,2]
[422893916,1779586240000,-151.0,0.00021913,2]
[422893918,1779586240000,-275.93152964,0.00021913,2]
[422893920,1779586240000,-151.0,0.00021913,2]
[422893923,1779586240000,-286.14099624,0.00021913,2]
[422893925,1779586240000,-500.0,0.00021913,2]
[422893889,1779586240000,-500.0,0.00021913,2]
[422893937,1779586240000,-151.0,0.00021913,2]
[422893948,1779586240000,-151.0,0.00021913,2]
[422893935,1779586240000,-307.70715698,0.00021913,2]
[422893962,1779586240000,-151.0,0.00021913,2]
[422893960,1779586240000,-500.0,0.00021913,2]
[422893958,1779586240000,-151.0,0.00021913,2]
[422893956,1779586240000,-151.0,0.00021913,2]
[422893954,1779586240000,-151.0,0.00021913,2]
[422893944,1779586240000,-500.0,0.00021913,2]
[422893929,1779586240000,-296.7282131,0.00021913,2]
[422893931,1779586240000,-151.0,0.00021913,2]
[422893941,1779586240000,-151.0,0.00021913,2]
[422893939,1779586240000,-319.09232175,0.00021913,2]
[422893927,1779586240000,-151.0,0.00021913,2]
[422893933,1779586240000,-500.0,0.00021913,2]
[422894075,1779586241000,-333.0,0.00023,2]
[422894073,1779586241000,-331.0,0.00023,2]
[422894071,1779586241000,-500.0,0.00022916,2]
[422894087,1779586241000,-1934.38338736,0.00023009,2]
[422894077,1779586241000,-1233.0,0.00023,2]
[422894091,1779586241000,-163.424408,0.00023267,2]
[422894089,1779586241000,-1531.92,0.00023099,2]
[422894079,1779586241000,-256.0,0.00023,2]
[422894085,1779586241000,-200.0,0.00023009,2]
[422894080,1779586241000,-1574.13,0.00023,7]
[422894084,1779586241000,-252.81269885,0.00023009,2]
[422894093,1779586241000,-5530.0,0.000233,5]
[422894082,1779586241000,-5530.0,0.00023,3]
[422894067,1779586241000,-2000.0,0.00022857,7]
[422894095,1779586241000,-167.42,0.00023327,2]
[422894097,1779586241000,-239.96111055,0.000234,21]
[422894099,1779586241000,-200.0,0.00023557,2]
[422894111,1779586241000,-331.0,0.00024,2]
[422894081,1779586241000,-246.0,0.00023,2]
[422894069,1779586241000,-500.0,0.00022916,2]
[422894049,1779586241000,-531.16540748,0.0002271,2]
[422894063,1779586241000,-12228.6744526,0.0002279,2]
[422894109,1779586241000,-600.0,0.000239,8]
[422894024,1779586241000,-243.80072544,0.0002211,2]
[422894033,1779586241000,-1302.4,0.00022353,2]
[422894026,1779586241000,-695.94989017,0.00022193,2]
[422894035,1779586241000,-151.0,0.00022461,2]
[422894028,1779586241000,-5660.44,0.00022222,7]
[422894037,1779586241000,-200.0,0.00022461,2]
[422894030,1779586241000,-185.29,0.00022247,2]
[422894065,1779586241000,-3101.0897848,0.0002279,2]
[422894043,1779586241000,-36030.32987391,0.000225,2]
[422894041,1779586241000,-2900.0,0.000225,15]
[422894045,1779586241000,-3659.31812104,0.000226,2]
[422894057,1779586241000,-919.0444427,0.0002279,2]
[422894055,1779586241000,-5329.1793599,0.0002279,2]
[422894059,1779586241000,-626.2373088,0.0002279,2]
[422894053,1779586241000,-469.6779816,0.0002279,2]
[422894051,1779586241000,-333.2315958,0.0002279,2]
[422894061,1779586241000,-253.86787434,0.0002279,2]
[422894047,1779586241000,-209878.0,0.000226,2]
[422894039,1779586241000,-1865.36488656,0.00022461,2]
[422894107,1779586241000,-3400.0,0.000238,8]
[422894114,1779586241000,-333.0,0.00024,2]
[422894157,1779586241000,-500.0,0.00024116,2]
[422894163,1779586241000,-500.0,0.00024116,2]
[422894155,1779586241000,-500.0,0.00024116,2]
[422894167,1779586241000,-500.0,0.00024116,2]
[422894169,1779586241000,-523.2746657,0.00024116,2]
[422894171,1779586241000,-300.0,0.00024116,2]
[422894177,1779586241000,-151.0,0.00024117,2]
[422894173,1779586241000,-563.63222322,0.00024116,2]
[422894165,1779586241000,-500.0,0.00024116,2]
[422894175,1779586241000,-666.0,0.00024116,2]
[422894181,1779586241000,-561.714307,0.00024117,2]
[422894183,1779586241000,-561.714307,0.00024117,2]
[422894188,1779586241000,-561.714307,0.00024117,2]
[422894185,1779586241000,-561.714307,0.00024117,2]
[422894241,1779586241000,-18744.3142,0.00024117,2]
[422894239,1779586241000,-965293.32056354,0.00024117,2]
[422894237,1779586241000,-680.85128697,0.000162,2]
[422894103,1779586241000,-500.0,0.00023603,2]
[422894179,1779586241000,-151.0,0.00024117,2]
[422894153,1779586241000,-500.0,0.00024116,2]
[422894190,1779586241000,-1524264.01383646,0.00024117,2]
[422894159,1779586241000,-587.3,0.00024116,2]
[422894116,1779586241000,-256.0,0.00024,2]
[422894161,1779586241000,-500.0,0.00024116,2]
[422894101,1779586241000,-2005.9555727,0.00023557,2]
[422894105,1779586241000,-500.0,0.00023603,2]
[422894118,1779586241000,-246.0,0.00024,2]
[422894123,1779586241000,-215.31523495,0.00024061,2]
[422894125,1779586241000,-200.0,0.00024105,2]
[422894133,1779586241000,-500.0,0.00024116,2]
[422894127,1779586241000,-2080.17592889,0.00024105,2]
[422894120,1779586241000,-5000.0,0.00024017,2]
[422894138,1779586241000,-553.82,0.00024116,2]
[422894129,1779586241000,-267.71369052,0.00024107,2]
[422894140,1779586241000,-500.0,0.00024116,2]
[422894142,1779586241000,-500.0,0.00024116,2]
[422894144,1779586241000,-500.0,0.00024116,2]
[422894131,1779586241000,-267.71369052,0.00024107,2]
[422894146,1779586241000,-169.92,0.00024116,2]
[422894151,1779586241000,-500.0,0.00024116,2]
[422894136,1779586241000,-500.0,0.00024116,2]
[422894148,1779586241000,-500.0,0.00024116,2]
[422894330,1779586242000,-1352.0,0.00024452,2]
[422894326,1779586242000,-150.0,0.00024452,2]
[422894320,1779586242000,-206.0,0.00024452,2]
[422894322,1779586242000,-150.0,0.00024452,2]
[422894316,1779586242000,-207.5035293,0.00024452,2]
[422894318,1779586242000,-500.0,0.00024452,2]
[422894308,1779586242000,-500.0,0.00024452,2]
[422894310,1779586242000,-150.0,0.00024452,2]
[422894312,1779586242000,-150.0,0.00024452,2]
[422894328,1779586242000,-1352.0,0.00024452,2]
[422894306,1779586242000,-150.0,0.00024452,2]
[422894314,1779586242000,-500.0,0.00024452,2]
[422894324,1779586242000,-150.0,0.00024452,2]
[422894351,1779586242000,-1352.0,0.00024452,2]
[422894336,1779586242000,-1352.0,0.00024452,2]
[422894337,1779586242000,-1352.0,0.00024452,2]
[422894334,1779586242000,-1352.0,0.00024452,2]
[422894339,1779586242000,-1352.0,0.00024452,2]
[422894343,1779586242000,-1352.0,0.00024452,2]
[422894341,1779586242000,-1352.0,0.00024452,2]
[422894345,1779586242000,-1352.0,0.00024452,2]
[422894347,1779586242000,-1352.0,0.00024452,2]
[422894349,1779586242000,-1352.0,0.00024452,2]
[422894353,1779586242000,-1352.0,0.00024452,2]
[422894356,1779586242000,-1352.0,0.00024452,2]
[422894298,1779586242000,-500.0,0.00024452,2]
[422894332,1779586242000,-1352.0,0.00024452,2]
[422894300,1779586242000,-500.0,0.00024452,2]
[422894259,1779586242000,-500.0,0.00024216,2]
[422894302,1779586242000,-500.0,0.00024452,2]
[422894358,1779586242000,-1352.0,0.00024452,2]
[422894244,1779586242000,-300.0,0.00024173,2]
[422894246,1779586242000,-670.58560358,0.00024173,2]
[422894248,1779586242000,-1863.95,0.00024174,2]
[422894250,1779586242000,-793.69,0.00024174,2]
[422894255,1779586242000,-171.92,0.00024212,2]
[422894252,1779586242000,-29216.87,0.00024174,2]
[422894257,1779586242000,-500.0,0.00024216,2]
[422894263,1779586242000,-500.0,0.00024216,2]
[422894261,1779586242000,-500.0,0.00024216,2]
[422894268,1779586242000,-500.0,0.00024216,2]
[422894266,1779586242000,-181.36181722,0.00024216,2]
[422894272,1779586242000,-233.12534026,0.00024217,2]
[422894288,1779586242000,-150.0,0.00024452,2]
[422894285,1779586242000,-150.0,0.00024452,2]
[422894287,1779586242000,-150.0,0.00024452,2]
[422894283,1779586242000,-250.0,0.00024452,2]
[422894274,1779586242000,-1574.13,0.000243,7]
[422894277,1779586242000,-1302.4,0.00024324,2]
[422894291,1779586242000,-250.0,0.00024452,2]
[422894279,1779586242000,-250.0,0.00024452,2]
[422894281,1779586242000,-150.0,0.00024452,2]
[422894295,1779586242000,-173.36278918,0.00024452,2]
[422894294,1779586242000,-263.3307155,0.00024452,2]
[422894293,1779586242000,-150.0,0.00024452,2]
[422894297,1779586242000,-500.0,0.00024452,2]
[422894296,1779586242000,-500.0,0.00024452,2]
[422894304,1779586242000,-226.29850222,0.00024452,2]
[422894362,1779586242000,-1352.0,0.00024452,2]
[422894270,1779586242000,-500.0,0.00024216,2]
[422894368,1779586242000,-1352.0,0.00024452,2]
[422894438,1779586242000,-152.0,0.00024909,2]
[422894440,1779586242000,-152.0,0.00024909,2]
[422894427,1779586242000,-181.08010149,0.00024909,2]
[422894429,1779586242000,-578.20924308,0.00024909,2]
[422894442,1779586242000,-152.0,0.00024909,2]
[422894432,1779586242000,-151.0,0.00024909,2]
[422894446,1779586242000,-152.0,0.00024909,2]
[422894448,1779586242000,-152.0,0.00024909,2]
[422894444,1779586242000,-152.0,0.00024909,2]
[422894462,1779586242000,-425.0,0.00024911,10]
[422894452,1779586242000,-152.0,0.00024909,2]
[422894450,1779586242000,-152.0,0.00024909,2]
[422894454,1779586242000,-152.0,0.00024909,2]
[422894481,1779586242000,-343233.89696543,0.00025,2]
[422894464,1779586242000,-560.0,0.00024911,10]
[422894467,1779586242000,-830.0,0.00024911,10]
[422894460,1779586242000,-152.0,0.00024909,2]
[422894456,1779586242000,-152.0,0.00024909,2]
[422894459,1779586242000,-152.0,0.00024909,2]
[422894469,1779586242000,-1650.35764303,0.00024919,2]
[422894471,1779586242000,-1487.0,0.00024932,5]
[422894473,1779586242000,-151.0,0.00024964,2]
[422894488,1779586242000,713.335,0.00028082,120]
[422894477,1779586242000,-334.0,0.00025,2]
[422894475,1779586242000,-340.0,0.00025,2]
[422894479,1779586242000,-257.22364265,0.00025,2]
[422894360,1779586242000,-1352.0,0.00024452,2]
[422894425,1779586242000,-200.0,0.00024909,2]
[422894434,1779586242000,-623.58710447,0.00024909,2]
[422894436,1779586242000,-152.0,0.00024909,2]
[422894421,1779586242000,-174.61919141,0.00024909,2]
[422894364,1779586242000,-1352.0,0.00024452,2]
[422894370,1779586242000,-1352.0,0.00024452,2]
[422894366,1779586242000,-1352.0,0.00024452,2]
[422894383,1779586242000,-168.3853837,0.0002455,15]
[422894385,1779586242000,-200.0,0.00024653,2]
[422894371,1779586242000,-1352.0,0.00024452,2]
[422894388,1779586242000,-2157.14243826,0.00024653,2]
[422894390,1779586242000,-1487.0,0.00024658,5]
[422894391,1779586242000,-1000.0,0.00024658,2]
[422894393,1779586242000,-295.35,0.00024658,2]
[422894375,1779586242000,-478.75,0.00024459,2]
[422894423,1779586242000,-3597.61791044,0.00024909,2]
[422894381,1779586242000,-158.0,0.00024547,5]
[422894374,1779586242000,-1358.33212555,0.00024452,2]
[422894377,1779586242000,-478.73,0.00024459,2]
[422894395,1779586242000,-153.72,0.00024658,2]
[422894419,1779586242000,-270.2708057,0.00024909,2]
[422894417,1779586242000,-1235.18214925,0.00024909,2]
[422894380,1779586242000,-153.0,0.00024547,5]
[422894413,1779586242000,-561.714307,0.00024837,2]
[422894405,1779586242000,-151.0,0.00024837,2]
[422894403,1779586242000,-52903.19,0.00024837,7]
[422894415,1779586242000,-215.31523495,0.000249,7]
[422894411,1779586242000,-561.714307,0.00024837,2]
[422894401,1779586242000,-8897.63,0.00024837,7]
[422894407,1779586242000,-561.714307,0.00024837,2]
[422894399,1779586242000,-416.60252215,0.00024836,10]
[422894397,1779586242000,-153.93,0.00024658,2]
[422894409,1779586242000,-561.714307,0.00024837,2]
[422894562,1779586243000,-114140.21591928,0.00025,2]
[422894561,1779586243000,-966.11027394,0.00021991,2]
[422894490,1779586243000,-877.23075777,0.00025,2]
[422894563,1779586244000,-3422.88970174,0.00025,2]
[422894593,1779586246000,-6531.2845456,0.00025,2]
[422894590,1779586246000,-157.16,0.00024658,2]
[422894605,1779586246000,-765.56801084,0.00025,2]
[422894607,1779586246000,-1618.79423585,0.00025,2]
[422894606,1779586246000,-10988.02962212,0.00025,2]
[422894604,1779586246000,-1124.45115733,0.00025,2]
[422894608,1779586246000,-48732.98260557,0.00025,2]
[422894614,1779586247000,-1104.89183922,0.00025,2]
[422894613,1779586247000,-577.0,0.00025,2]
[422894615,1779586247000,-1189.33499715,0.00025,2]
[422894612,1779586247000,-651.98542784,0.00025,2]
[422894610,1779586247000,-5497.1600214,0.00025,2]
[422894611,1779586247000,-541.49873784,0.00025,2]
[422894609,1779586247000,-317.72001098,0.00025,2]
[422894789,1779586346000,246.84,0.00028082,120]
[422894790,1779586528000,170.78483,0.00026849,120]
[422894791,1779586564000,220.74043461,0.00027392,120]
[422894793,1779586964000,886.28,0.00027823,120]
[422894886,1779587278000,237.58,0.00028012,120]
[422894887,1779587341000,1000.0,0.00028081,120]
[422894919,1779587432000,-766.5,0.00016438,2]
[422894915,1779587432000,-500.0,0.00014999,2]
[422894923,1779587432000,-299.99,0.00017728,4]
[422894918,1779587432000,-409.0,0.00016412,2]
[422894920,1779587432000,-1680.0,0.00016496,2]
[422894913,1779587432000,-500.0,0.00014999,2]
[422894922,1779587432000,-1612.69,0.00017728,2]
[422894921,1779587432000,-433.0,0.00017338,2]
[422894926,1779587432000,-766.5,0.0001841,2]
[422894930,1779587432000,-230.15,0.00019316,2]
[422894936,1779587432000,-151.0,0.0001978,2]
[422894937,1779587432000,-151.0,0.0001978,2]
[422894935,1779587432000,-1798.80895522,0.0001978,2]
[422894925,1779587432000,-173.16,0.00018245,2]
[422894927,1779587432000,-736.0,0.00018628,2]
[422894929,1779587432000,-165.24042393,0.00019,2]
[422894924,1779587432000,-2351.0,0.00018145,2]
[422894933,1779587432000,-200.0,0.0001978,2]
[422894928,1779587432000,-162.63893705,0.00019,2]
[422894932,1779587432000,-152.70923413,0.0001978,2]
[422894934,1779587432000,-521.20369368,0.0001978,2]
[422894914,1779587432000,-508.40286137,0.00014999,2]
[422894907,1779587432000,-500.88002424,0.00014999,2]
[422894912,1779587432000,-500.0,0.00014999,2]
[422894931,1779587432000,-500.0,0.0001978,2]
[422894892,1779587432000,-267.0,0.0001,2]
[422894896,1779587432000,-194.98756523,0.00011617,2]
[422894894,1779587432000,-326.26511179,0.0001,2]
[422894895,1779587432000,-173.14,0.00010561,2]
[422894893,1779587432000,-129.54827841,0.0001,2]
[422894897,1779587432000,-157.47486879,0.00012176,2]
[422894899,1779587432000,-197.6366185,0.00014815,2]
[422894910,1779587432000,-500.0,0.00014999,2]
[422894917,1779587432000,-255.0,0.00016123,2]
[422894898,1779587432000,-323.82986571,0.00012176,2]
[422894909,1779587432000,-504.29151086,0.00014999,2]
[422894902,1779587432000,-300.0,0.00014996,2]
[422894905,1779587432000,-194.63575793,0.00014999,2]
[422894903,1779587432000,-1200.0,0.00014997,2]
[422894901,1779587432000,-1200.0,0.00014996,2]
[422894900,1779587432000,-536.3061,0.00014899,2]
[422894904,1779587432000,-150.0,0.00014998,2]
[422894906,1779587432000,-500.0,0.00014999,2]
[422894911,1779587432000,-500.0,0.00014999,2]
[422894908,1779587432000,-500.0,0.00014999,2]
[422894938,1779587432000,-151.0,0.0001978,2]
[422894916,1779587432000,-512.0093558,0.00014999,2]
[422894941,1779587432000,-151.0,0.0001978,2]
[422894961,1779587432000,-766.5,0.00020381,2]
[422894956,1779587432000,-200.0,0.00020328,2]
[422894967,1779587432000,-156.0,0.00021,2]
[422894971,1779587432000,-200.0,0.00021023,2]
[422894972,1779587432000,-210.44548877,0.00021058,2]
[422894977,1779587432000,-2005.9555727,0.00021424,2]
[422894974,1779587432000,-23552.39,0.00021273,2]
[422894970,1779587432000,-161.60438977,0.00021,2]
[422894973,1779587432000,-197.63661849,0.0002127,2]
[422894963,1779587432000,-1934.38338736,0.00020876,2]
[422894969,1779587432000,-207.0,0.00021,2]
[422894968,1779587432000,-362.0,0.00021,2]
[422894975,1779587432000,-6470.94,0.0002137,2]
[422894978,1779587432000,-500.0,0.000219,2]
[422894979,1779587432000,-5000.0,0.00021918,2]
[422894981,1779587432000,-3939.0,0.00021956,2]
[422894983,1779587432000,-904.0,0.00022,2]
[422894986,1779587432000,-156.0,0.00022,2]
[422894984,1779587432000,-155.0,0.00022,2]
[422894982,1779587432000,-1924.17885186,0.00021972,2]
[422894976,1779587432000,-202.64095844,0.00021424,2]
[422894959,1779587432000,-167.42,0.00020347,2]
[422894980,1779587432000,-398.35,0.00021918,2]
[422894960,1779587432000,-254.06,0.00020373,2]
[422894962,1779587432000,-200.0,0.00020876,2]
[422894943,1779587432000,-219.79815383,0.0001978,2]
[422894944,1779587432000,-3292.0,0.0001996,2]
[422894940,1779587432000,-151.0,0.0001978,2]
[422894951,1779587432000,-154.0,0.0002,2]
[422894950,1779587432000,-207.0,0.0002,2]
[422894946,1779587432000,-155.0,0.0002,2]
[422894947,1779587432000,-350.0,0.0002,2]
[422894949,1779587432000,-362.0,0.0002,2]
[422894952,1779587432000,-329.84,0.00020006,2]
[422894939,1779587432000,-151.0,0.0001978,2]
[422894948,1779587432000,-156.0,0.0002,2]
[422894945,1779587432000,-904.0,0.0002,2]
[422894958,1779587432000,-161.21,0.0002033,2]
[422894966,1779587432000,-350.0,0.00021,2]
[422894955,1779587432000,-886.28,0.00020235,2]
[422894985,1779587432000,-350.0,0.00022,2]
[422894953,1779587432000,-663.0,0.00020022,2]
[422894965,1779587432000,-155.0,0.00021,2]
[422894964,1779587432000,-904.0,0.00021,2]
[422894954,1779587432000,-503.97765663,0.00020054,2]
[422894957,1779587432000,-1865.36488656,0.00020328,2]
[422895007,1779587433000,-500.0,0.00022969,2]
[422895008,1779587433000,-500.0,0.00022969,2]
[422895009,1779587433000,-500.0,0.00022969,2]
[422895014,1779587433000,-500.0,0.00022969,2]
[422895006,1779587433000,-500.0,0.00022969,2]
[422895015,1779587433000,-500.0,0.00022969,2]
[422895010,1779587433000,-500.0,0.00022969,2]
[422895017,1779587433000,-500.0,0.00022969,2]
[422895013,1779587433000,-500.0,0.00022969,2]
[422895019,1779587433000,-500.0,0.00022969,2]
[422895011,1779587433000,-500.0,0.00022969,2]
[422895027,1779587433000,-178.20534487,0.00022969,2]
[422895018,1779587433000,-500.0,0.00022969,2]
[422895016,1779587433000,-500.0,0.00022969,2]
[422895020,1779587433000,-500.0,0.00022969,2]
[422895012,1779587433000,-500.0,0.00022969,2]
[422895004,1779587433000,-500.0,0.00022969,2]
[422894993,1779587433000,-886.28,0.00022764,2]
[422895002,1779587433000,-500.0,0.00022969,2]
[422895028,1779587433000,-500.0,0.00022969,2]
[422894990,1779587433000,-150.0,0.00022488,4]
[422894991,1779587433000,-1863.95,0.00022691,2]
[422894988,1779587433000,-207.0,0.00022,2]
[422894989,1779587433000,-766.5,0.00022353,2]
[422894987,1779587433000,-362.0,0.00022,2]
[422894992,1779587433000,-793.69,0.00022691,2]
[422894994,1779587433000,-1000.0,0.000228,4]
[422894999,1779587433000,-500.0,0.00022969,2]
[422894997,1779587433000,-500.0,0.00022969,2]
[422894996,1779587433000,-4324.53113127,0.000229,2]
[422894998,1779587433000,-500.0,0.00022969,2]
[422895000,1779587433000,-400.4275611,0.00022969,2]
[422895003,1779587433000,-500.0,0.00022969,2]
[422895001,1779587433000,-500.0,0.00022969,2]
[422895005,1779587433000,-500.0,0.00022969,2]
[422894995,1779587433000,-4368.16746337,0.000229,2]
[422895022,1779587433000,-500.0,0.00022969,2]
[422895023,1779587433000,-500.0,0.00022969,2]
[422895048,1779587433000,-500.0,0.00022969,2]
[422895045,1779587433000,-500.0,0.00022969,2]
[422895049,1779587433000,-500.0,0.00022969,2]
[422895047,1779587433000,-557.29706005,0.00022969,2]
[422895050,1779587433000,-500.0,0.00022969,2]
[422895052,1779587433000,-500.0,0.00022969,2]
[422895051,1779587433000,-500.0,0.00022969,2]
[422895046,1779587433000,-500.0,0.00022969,2]
[422895053,1779587433000,-381.28240766,0.00022969,2]
[422895055,1779587433000,-501.88498579,0.00022969,2]
[422895054,1779587433000,-434.05746004,0.00022969,2]
[422895059,1779587433000,-51410.11448473,0.0002297,2]
[422895056,1779587433000,-500.48354204,0.00022969,2]
[422895057,1779587433000,-212.92851877,0.00022969,2]
[422895060,1779587433000,-87621.15033352,0.0002297,2]
[422895061,1779587433000,-907.13116191,0.0002297,2]
[422895058,1779587433000,-11793.80635471,0.0002297,2]
[422895025,1779587433000,-500.0,0.00022969,2]
[422895044,1779587433000,-500.0,0.00022969,2]
[422895041,1779587433000,-500.0,0.00022969,2]
[422895021,1779587433000,-500.0,0.00022969,2]
[422895024,1779587433000,-500.0,0.00022969,2]
[422895026,1779587433000,-321.79465513,0.00022969,2]
[422895030,1779587433000,-500.0,0.00022969,2]
[422895038,1779587433000,-197.9901979,0.00022969,2]
[422895031,1779587433000,-500.0,0.00022969,2]
[422895032,1779587433000,-500.0,0.00022969,2]
[422895043,1779587433000,-500.0,0.00022969,2]
[422895040,1779587433000,-500.0,0.00022969,2]
[422895029,1779587433000,-500.0,0.00022969,2]
[422895037,1779587433000,-500.0,0.00022969,2]
[422895033,1779587433000,-500.0,0.00022969,2]
[422895036,1779587433000,-500.0,0.00022969,2]
[422895034,1779587433000,-500.0,0.00022969,2]
[422895035,1779587433000,-500.0,0.00022969,2]
[422895042,1779587433000,-500.0,0.00022969,2]
[422895039,1779587433000,-500.0,0.00022969,2]
[422895067,1779587438000,-8178.63173699,0.0002297,2]
[422895066,1779587438000,-215.31523495,0.00015066,2]
[422895065,1779587438000,-160.0,0.00014923,2]
[422895070,1779587438000,-419.17316,0.0002297,2]
[422895069,1779587438000,-1920.88549741,0.0002297,2]
[422895071,1779587438000,-402.00835186,0.0002297,2]
[422895068,1779587438000,-736.66604106,0.0002297,2]
[422895146,1779587440000,-1618.76632722,0.000229,2]
[422895143,1779587440000,-302.39060002,0.000229,2]
[422895141,1779587440000,-864.25798294,0.000229,2]
[422895125,1779587440000,-436.19646076,0.000229,2]
[422895088,1779587440000,-959.37255751,0.000229,2]
[422895181,1779587441000,-467.97099624,0.000229,2]
[422895551,1779587443000,-930.008595,0.0002,2]
[422895559,1779587443000,-155.0,0.00023,2]
[422895493,1779587443000,-253.991405,0.0002,2]
[422895555,1779587443000,-341458.90507781,0.0002297,2]
[422895557,1779587443000,-904.0,0.00023,2]
[422895553,1779587443000,-8541.61414709,0.000229,2]
[422895593,1779587444000,-478.75,0.00024348,2]
[422895622,1779587444000,-500.0,0.00024452,2]
[422895620,1779587444000,-500.0,0.00024452,2]
[422895624,1779587444000,-489.51007944,0.00024452,2]
[422895618,1779587444000,-500.0,0.00024452,2]
[422895616,1779587444000,-500.0,0.00024452,2]
[422895614,1779587444000,-500.0,0.00024452,2]
[422895611,1779587444000,-500.0,0.00024452,2]
[422895599,1779587444000,-161.93976451,0.00024452,2]
[422895609,1779587444000,-500.0,0.00024452,2]
[422895597,1779587444000,-500.0,0.00024452,2]
[422895595,1779587444000,-500.0,0.00024452,2]
[422895573,1779587444000,-4368.16746333,0.00023692,2]
[422895583,1779587444000,-172.58093421,0.00024,2]
[422895577,1779587444000,-904.0,0.00024,2]
[422895575,1779587444000,-13190.56907174,0.00023692,2]
[422895589,1779587444000,-766.5,0.00024324,2]
[422895571,1779587444000,-1109.0,0.00023,2]
[422895585,1779587444000,-362.0,0.00024,2]
[422895587,1779587444000,-207.0,0.00024,2]
[422895581,1779587444000,-350.0,0.00024,2]
[422895579,1779587444000,-155.0,0.00024,2]
[422895568,1779587444000,-207.0,0.00023,2]
[422895566,1779587444000,-362.0,0.00023,2]
[422895564,1779587444000,-156.0,0.00023,2]
[422895562,1779587444000,-350.0,0.00023,2]
[422895591,1779587444000,-478.74,0.00024347,2]
[422895607,1779587444000,-500.0,0.00024452,2]
[422895638,1779587444000,-151.24,0.00024658,2]
[422895603,1779587444000,-500.0,0.00024452,2]
[422895601,1779587444000,-500.0,0.00024452,2]
[422895681,1779587444000,-1000.0,0.000248,2]
[422895678,1779587444000,-675.64498993,0.000248,2]
[422895667,1779587444000,-500.0,0.00024799,2]
[422895676,1779587444000,-80852.22712661,0.000248,2]
[422895669,1779587444000,-500.0,0.00024799,2]
[422895665,1779587444000,-500.0,0.00024799,2]
[422895663,1779587444000,-500.0,0.00024799,2]
[422895674,1779587444000,-205988.19440387,0.000248,2]
[422895653,1779587444000,-1235.18214925,0.00024758,2]
[422895672,1779587444000,-500.0,0.00024799,2]
[422895659,1779587444000,-623.58710447,0.00024758,2]
[422895657,1779587444000,-578.20924308,0.00024758,2]
[422895661,1779587444000,-151.0,0.00024758,2]
[422895649,1779587444000,-174.61919141,0.00024758,2]
[422895605,1779587444000,-168.80793762,0.00024452,2]
[422895626,1779587444000,-4368.16746333,0.00024484,2]
[422895636,1779587444000,-1000.0,0.00024658,2]
[422895640,1779587444000,-151.23,0.00024658,2]
[422895655,1779587444000,-181.08010149,0.00024758,2]
[422895628,1779587444000,-398.35,0.00024658,8]
[422895643,1779587444000,-353.93082303,0.00024702,2]
[422895634,1779587444000,-236.28,0.00024658,2]
[422895630,1779587444000,-167.30300113,0.00024658,2]
[422895632,1779587444000,-1487.0,0.00024658,5]